bitfinex/quotes_ETHUSD_20250214
["timestamp","ask_amount","ask_price","bid_price","bid_amount"]
[1739521284001,0.7877,2707.2,2706.7,3.69452]
[1739521284214,4.48158,2707.2,2706.7,3.69452]
[1739521284725,3.69407,2707.1,2706.6,5.20879302]
[1739521285313,3.69407,2707.1,2706.7,3.69452]
[1739521285832,4.48155,2707.2,2706.7,3.69452]
[1739521287092,4.48155,2707.2,2706.7,7.38897]
[1739521287318,4.48155,2707.2,2706.7,3.69445]
[1739521288352,8.1755,2707.2,2706.7,3.69445]
[1739521288649,3.694,2707.1,2706.7,3.69445]
[1739521289856,3.694,2707.1,2706.8,0.10702624]
[1739521290029,4.48163,2707.2,2706.8,0.10702624]
[1739521290227,4.48163,2707.2,2706.7,3.69445]
[1739521290411,4.48163,2707.2,2706.8,0.10702624]
[1739521290611,4.48163,2707.2,2706.7,3.69445]
[1739521290811,4.48163,2707.2,2706.8,0.10702624]
[1739521291048,4.48163,2707.2,2706.8,3.69439]
[1739521291351,4.48163,2707.2,2706.9,0.10694283]
[1739521291656,4.48163,2707.2,2706.7,3.69453]
[1739521291657,3.6941,2707.1,2706.6,5.20879302]
[1739521291832,3.6941,2707.1,2706.7,0.10710965]
[1739521293262,4.48163,2707.2,2706.7,3.80156965]
[1739521293407,3.69404,2707.1,2706.7,3.80156965]
[1739521293843,0.7877,2707.2,2706.7,0.10710965]
[1739521294250,3.69432,2706.9,2706.7,0.10710965]
[1739521294615,3.69419,2707.0,2706.7,0.10710965]
[1739521295341,3.69399,2707.1,2706.7,0.10710965]
[1739521295719,4.48163,2707.2,2706.7,3.80161965]
[1739521295913,8.17561,2707.2,2706.7,3.80161965]
[1739521296552,4.48163,2707.2,2706.7,3.80161965]
[1739521296855,3.69403,2707.1,2706.7,3.80161965]
[1739521297081,3.69403,2707.1,2706.7,3.78341965]
[1739521299344,8.62281547,2707.2,2706.7,3.78341965]
[1739521300353,4.92890547,2707.2,2706.7,3.78341965]
[1739521300556,0.8408848,2707.5,2707.0,3.69405]
[1739521300892,0.8408848,2707.5,2707.1,0.10615464]
[1739521300893,3.0,2707.4,2707.1,0.10615464]
[1739521301041,6.69385,2707.2,2707.1,0.10615464]
[1739521301241,3.694,2707.1,2706.8,5.9924]
[1739521301480,3.694,2707.1,2706.8,5.2318]
[1739521301679,0.7928,2707.1,2706.8,5.2318]
[1739521302449,0.7928,2707.1,2706.8,8.92612]
[1739521302642,3.0,2707.2,2706.8,8.92612]
[1739521302643,0.0629848,2707.5,2707.4,3.69358]
[1739521302942,0.0629848,2707.5,2707.3,3.69367]
[1739521303160,0.0629848,2707.5,2707.1,7.38774]
[1739521303368,0.0629848,2707.5,2707.1,3.69386]
[1739521304385,0.0629848,2707.5,2707.2,3.69372]
[1739521304939,0.0629848,2707.5,2707.3,0.10571601]
[1739521305183,0.0629848,2707.5,2707.3,3.69371]
[1739521305349,0.0629848,2707.5,2707.4,3.69358]
[1739521305538,0.0629848,2707.5,2707.4,0.10563263]
[1739521305744,0.0629848,2707.5,2707.3,8.11935239]
[1739521305980,0.0629848,2707.5,2707.4,0.10554681]
[1739521306144,0.0629848,2707.5,2707.4,3.79912681]
[1739521306570,0.0629848,2707.5,2707.4,0.10554681]
[1739521307356,4.8e-06,2707.5,2707.4,22.72365927]
[1739521307558,0.7587,2708.9,2708.3,4.46625]
[1739521307954,4.45025,2708.9,2708.3,4.5709418]
[1739521308166,3.69167,2708.8,2708.3,0.8785918]
[1739521308599,3.69195,2708.6,2708.3,0.1046918]
[1739521308897,3.0,2708.7,2708.2,3.69247]
[1739521309057,3.0,2708.7,2708.3,0.1046918]
[1739521309252,6.69181,2708.7,2708.2,4.43415604]
[1739521309467,6.69181,2708.7,2708.3,0.1046918]
[1739521309671,3.69197,2708.6,2708.2,0.74174604]
[1739521309865,3.69197,2708.6,2708.3,0.1046918]
[1739521310072,3.0,2708.7,2708.3,3.69235]
[1739521310401,3.0,2708.7,2708.3,3.7970418]
[1739521310598,0.7587,2708.9,2708.3,0.1046918]
[1739521310802,3.0,2708.7,2708.3,0.1046918]
[1739521311006,0.7587,2708.9,2708.3,3.69235]
[1739521311158,3.69094,2709.4,2708.3,5.5119514]
[1739521311357,1e-05,2708.4,2708.3,8.6194514]
[1739521311782,1e-05,2708.4,2708.3,8.89412178]
[1739521312194,1e-05,2708.4,2708.3,9.09412178]
[1739521312720,1e-05,2708.4,2708.3,9.64412178]
[1739521313445,0.1468444,2710.1,2709.6,3.69048]
[1739521313735,0.1468444,2710.1,2710.0,7.23846954]
[1739521314028,4.4e-06,2710.1,2710.0,11.02012319]
[1739521314163,0.8023,2711.8,2711.0,0.3709]
[1739521314537,3.8331044,2712.8,2711.7,0.3709]
[1739521314808,0.8174,2712.5,2711.7,0.3709]
[1739521314968,3.68745,2711.9,2711.8,0.09937923]
[1739521315167,3.0,2711.9,2711.3,2.63943414]
[1739521315507,3.68811,2711.5,2711.4,0.09971169]
[1739521315667,6.68811,2711.5,2711.4,0.09971169]
[1739521315867,3.68856,2711.1,2710.2,1.48970257]
[1739521316113,3.68891,2710.9,2710.2,0.7653]
[1739521316304,3.68885,2710.9,2710.2,0.7653]
[1739521316495,0.368885,2710.8,2710.2,0.7653]
[1739521317302,4.44366,2711.3,2710.2,0.7653]
[1739521317303,0.7554,2711.3,2710.7,3.68904]
[1739521317506,6.68823,2711.4,2710.7,3.68904]
[1739521317664,6.68823,2711.4,2710.6,3.17753954]
[1739521317665,3.68854,2711.1,2710.6,3.17753954]
[1739521317865,0.368854,2711.0,2710.6,3.17753954]
[1739521318098,0.368854,2711.0,2710.5,3.68928]
[1739521318265,3.68845,2711.2,2710.5,3.68928]
[1739521318700,3.68845,2711.2,2710.3,6.86713954]
[1739521319067,6.68831,2711.3,2710.5,3.68932]
[1739521319274,3.68844,2711.2,2710.5,3.68932]
[1739521319472,3.0,2711.3,2710.5,3.68932]
[1739521319473,3.68854,2711.1,2710.5,3.68932]
[1739521319680,0.368854,2711.0,2710.4,3.68938]
[1739521319882,0.368854,2711.0,2710.6,0.10037692]
[1739521320069,0.368854,2711.0,2710.4,3.6894]
[1739521320270,0.368854,2711.0,2710.7,0.10029374]
[1739521320467,0.368854,2711.0,2710.3,3.17753954]
[1739521320771,0.7791,2711.6,2711.1,3.68844]
[1739521320982,0.3,2711.8,2710.9,3.17753954]
[1739521320983,0.3,2711.8,2711.2,3.17753954]
[1739521321213,0.7654,2712.0,2711.2,0.09981616]
[1739521321407,3.68826,2711.3,2711.2,0.09981616]
[1739521321710,3.68896,2710.8,2710.3,3.17753954]
[1739521321870,3.68896,2710.8,2710.2,3.68973]
[1739521322210,3.68873,2711.0,2710.3,3.68961]
[1739521322405,4.137663,2710.9,2710.2,3.68973]
[1739521322726,0.448853,2710.9,2710.3,3.68954]
[1739521323006,0.448853,2710.9,2710.2,3.68966]
[1739521323213,0.448853,2710.9,2710.4,3.68938]
[1739521323511,0.4137583,2710.8,2710.4,3.68948]
[1739521324489,0.4137583,2710.8,2710.5,3.68933]
[1739521324683,3.68889,2710.9,2710.3,6.42923392]
[1739521325290,0.7998,2711.1,2710.3,3.25169438]
[1739521325486,3.68906,2710.8,2710.3,3.25169438]
[1739521325681,3.68878,2711.0,2710.3,6.94122438]
[1739521325885,0.448858,2710.9,2710.3,6.94122438]
[1739521326084,4.137788,2710.9,2710.3,6.94122438]
[1739521326504,0.55,2710.8,2710.3,3.25169438]
[1739521326701,3.68942,2710.5,2710.3,3.25169438]
[1739521326903,0.737865,2710.4,2710.3,3.25169438]
[1739521327165,4.47269,2710.4,2710.3,3.25169438]
[1739521327427,4.47269,2710.4,2709.4,7.14130954]
[1739521327428,3.68978,2710.2,2709.5,3.69062]
[1739521327715,3.68966,2710.3,2709.6,3.69058]
[1739521327921,0.7832,2710.4,2709.7,0.03689935]
[1739521328219,3.55,2710.6,2710.2,3.68973]
[1739521328220,3.0,2710.6,2710.2,3.68973]
[1739521328386,0.448858,2710.9,2710.5,3.6893]
[1739521328593,0.448858,2710.9,2710.0,3.17753954]
[1739521328985,0.3998858,2710.8,2710.0,3.17753954]
[1739521329213,0.3998858,2710.8,2710.3,3.6895]
[1739521329817,4.0888258,2710.8,2710.3,3.6895]
[1739521330319,3.68909,2710.7,2710.2,3.68975]
[1739521331014,3.68918,2710.7,2710.1,3.68977]
[1739521331316,0.45379238,2710.7,2710.1,3.68977]
[1739521331492,3.68935,2710.5,2710.0,3.69003]
[1739521331675,3.68935,2710.5,2709.9,1.56793193]
[1739521331880,3.68935,2710.5,2710.0,3.69001]
[1739521332471,3.68936,2710.5,2710.0,3.69001]
[1739521332677,0.368936,2710.4,2710.2,3.68973]
[1739521332912,4.14293238,2710.7,2710.0,3.68996]
[1739521332913,4.14293238,2710.7,2710.0,3.68995]
[1739521333113,3.68924,2710.6,2710.1,3.68987]
[1739521333337,0.45379238,2710.7,2710.1,3.68987]
[1739521333748,0.45379238,2710.7,2710.1,3.68989]
[1739521333901,0.34537924,2710.6,2710.1,3.68989]
[1739521334079,0.34537924,2710.6,2710.2,3.68968]
[1739521334807,0.34537924,2710.6,2710.3,0.09616099]
[1739521335048,0.34537924,2710.6,2710.2,3.68976]
[1739521335222,4.03459924,2710.6,2710.4,0.09607779]
[1739521335423,0.44882516,2710.5,2710.2,3.68966]
[1739521335760,0.44882516,2710.5,2710.2,3.68974]
[1739521335977,0.44882516,2710.5,2710.3,3.68961]
[1739521336109,0.34537924,2710.6,2710.3,3.68961]
[1739521337251,0.34537924,2710.6,2710.2,3.68976]
[1739521337649,0.34537924,2710.6,2710.3,3.6895]
[1739521338209,0.34537924,2710.6,2710.3,7.37906]
[1739521338427,0.34537924,2710.6,2710.3,3.6895]
[1739521339452,0.2795,2711.6,2710.4,0.03689447]
[1739521339647,3.68895,2710.8,2710.3,3.68952]
[1739521339843,4.47988,2710.6,2710.1,3.68988]
[1739521340078,4.47988,2710.6,2710.0,3.68998]
[1739521340374,4.137398,2710.5,2710.1,3.68986]
[1739521340530,0.447988,2710.5,2710.1,3.68982]
[1739521340960,3.68965,2710.3,2709.7,3.69033]
[1739521341149,0.7906,2710.0,2709.6,3.69052]
[1739521341345,0.7906,2710.0,2709.5,3.6906]
[1739521341549,0.7906,2710.0,2709.7,3.69034]
[1739521342346,0.7906,2710.0,2709.8,3.69023]
[1739521342569,1.3518,2710.3,2709.9,3.69017]
[1739521342733,4.493891,2710.2,2709.7,3.69034]
[1739521342935,4.493891,2710.2,2709.7,7.38071]
[1739521343279,0.804131,2710.2,2709.9,3.69015]
[1739521343647,0.804131,2710.2,2709.7,3.69034]
[1739521343850,0.804131,2710.2,2709.8,0.27467977]
[1739521344165,0.47928099,2710.1,2709.8,3.96491977]
[1739521344470,0.804131,2710.2,2709.8,3.96491977]
[1739521344696,4.493961,2710.2,2709.8,0.27467977]
[1739521345176,4.493961,2710.2,2709.7,3.69031]
[1739521346076,3.68991,2710.1,2709.5,3.69065]
[1739521346262,3.68991,2710.1,2709.5,3.69059]
[1739521346582,4.493891,2710.2,2709.7,3.69039]
[1739521346789,0.804131,2710.2,2710.0,3.69003]
[1739521346981,0.8018,2710.3,2710.0,3.69003]
[1739521347150,3.0,2710.4,2710.3,3.68962]
[1739521347347,3.0,2710.4,2710.1,3.68978]
[1739521347552,3.0,2710.4,2710.2,3.68975]
[1739521347747,0.8249,2711.1,2709.9,0.03689666]
[1739521347951,0.8249,2711.1,2710.5,3.68929]
[1739521347952,0.452081,2711.0,2710.5,3.68929]
[1739521348176,3.0,2711.0,2710.1,3.6899]
[1739521348352,3.68897,2710.8,2710.2,3.68964]
[1739521348566,3.68897,2710.8,2710.3,3.6895]
[1739521348887,3.68897,2710.8,2710.2,3.68964]
[1739521348888,3.68876,2711.0,2710.4,3.68947]
[1739521349074,0.451366,2710.9,2710.4,3.68947]
[1739521349276,0.451366,2710.9,2710.5,3.68934]
[1739521349790,4.140176,2710.9,2710.4,3.68947]
[1739521349945,3.68897,2710.8,2710.6,0.09605371]
[1739521350151,3.68897,2710.8,2710.5,0.09613689]
[1739521350352,0.4140336,2710.7,2710.3,3.68962]
[1739521350573,0.4140336,2710.7,2710.0,3.68994]
[1739521350777,7.37881,2710.5,2710.0,3.68994]
[1739521351049,3.68935,2710.5,2710.0,3.68994]
[1739521351249,3.68955,2710.4,2709.9,3.69009]
[1739521351482,0.7835,2710.6,2709.6,3.69051]
[1739521351655,3.0,2710.5,2709.6,3.69051]
[1739521351851,3.68984,2710.2,2709.6,7.38096]
[1739521352046,4.48162,2710.3,2709.8,3.69024]
[1739521352285,8.17134,2710.3,2709.8,3.69024]
[1739521352461,3.68976,2710.2,2709.8,3.69024]
[1739521352667,0.792,2710.3,2709.8,3.69024]
[1739521352867,0.792,2710.3,2709.9,3.69016]
[1739521352868,4.48164,2710.3,2709.9,3.69016]
[1739521353189,0.5150564,2710.2,2709.6,3.69048]
[1739521353390,4.2048264,2710.2,2709.7,3.69037]
[1739521353556,0.5150564,2710.2,2709.7,3.69044]
[1739521353758,4.2048364,2710.2,2709.7,3.69044]
[1739521354159,0.5150564,2710.2,2709.7,3.69044]
[1739521354470,4.18956964,2710.1,2709.7,3.69044]
[1739521354665,0.49966964,2710.1,2709.8,3.6903]
[1739521355557,3.68977,2710.2,2709.6,3.69044]
[1739521355780,3.68977,2710.2,2709.7,3.69037]
[1739521356192,3.68977,2710.2,2709.6,3.69044]
[1739521356193,3.68996,2710.1,2709.6,3.69044]
[1739521356393,3.69004,2710.0,2709.6,3.69044]
[1739521356753,3.6899,2710.1,2709.6,7.38093]
[1739521356963,0.817167,2710.1,2709.7,3.69037]
[1739521357395,8.197147,2710.1,2709.6,3.69044]
[1739521357595,0.817167,2710.1,2709.6,3.69044]
[1739521357891,0.792,2710.3,2709.6,3.69044]
[1739521358255,3.68977,2710.2,2709.7,3.69036]
[1739521358491,3.68977,2710.2,2709.6,3.69044]
[1739521358796,3.68977,2710.2,2709.7,3.69044]
[1739521358964,4.48163,2710.3,2709.8,3.69021]
[1739521359169,4.506952,2710.2,2709.7,3.69044]
[1739521359370,4.506952,2710.2,2709.7,3.69037]
[1739521359778,4.506952,2710.2,2709.5,3.92649531]
[1739521359955,4.506952,2710.2,2709.7,3.69037]
[1739521360356,0.817122,2710.2,2709.6,3.69046]
[1739521360662,3.68985,2710.2,2709.7,3.69038]
[1739521360875,3.68985,2710.2,2709.8,3.69027]
[1739521361597,3.68977,2710.2,2709.8,3.69027]
[1739521362303,0.792,2710.3,2709.8,3.69021]
[1739521362454,3.68976,2710.2,2709.8,3.69021]
[1739521362658,4.506897,2710.2,2709.8,3.69021]
[1739521362861,4.506897,2710.2,2709.7,3.69044]
[1739521363264,3.6899,2710.1,2709.7,3.69044]
[1739521363464,3.69006,2710.0,2709.6,3.69056]
[1739521364015,3.6899,2710.1,2709.6,3.69056]
[1739521364016,3.68997,2710.1,2709.6,3.69056]
[1739521364363,3.69005,2710.0,2709.6,3.69056]
[1739521364569,3.69005,2710.0,2709.5,6.84839531]
[1739521364879,3.69005,2710.0,2709.6,3.7841153]
[1739521365268,4.5887997,2710.1,2709.6,0.0935553]
[1739521365474,3.69009,2710.0,2709.6,3.7841253]
[1739521366106,4.5887997,2710.1,2709.7,3.69035]
[1739521366310,4.5887997,2710.1,2709.7,0.09347206]
[1739521366488,4.5887997,2710.1,2709.4,4.41860463]
[1739521366489,4.14897997,2710.0,2709.4,4.41860463]
[1739521366667,3.69027,2709.9,2709.8,0.09338883]
[1739521366999,4.14897997,2710.0,2709.5,3.69065]
[1739521367319,4.14897997,2710.0,2709.4,4.41860463]
[1739521367619,3.69031,2709.8,2709.6,0.09358376]
[1739521367906,3.69031,2709.8,2709.7,0.09350052]
[1739521368062,0.45887997,2710.0,2709.4,4.41860463]
[1739521368261,3.69012,2710.0,2709.7,0.09350052]
[1739521368461,0.792,2710.3,2709.5,3.69071]
[1739521368683,3.69002,2710.1,2709.8,0.09341729]
[1739521368888,3.69005,2710.0,2709.5,3.69062]
[1739521369090,3.69005,2710.0,2709.9,0.09333407]
[1739521369300,4.428057,2710.0,2709.5,3.69062]
[1739521369459,3.69023,2709.9,2709.5,3.69062]
[1739521369659,0.7907,2709.8,2709.4,0.72787463]
[1739521369864,3.69044,2709.7,2709.3,3.69092]
[1739521370065,4.48101,2709.8,2709.3,3.69092]
[1739521370286,0.7907,2709.8,2709.4,3.69076]
[1739521370868,0.8188,2710.1,2709.3,0.0369062]
[1739521371066,3.69004,2710.0,2709.5,3.69058]
[1739521371609,3.69019,2709.9,2709.5,3.69058]
[1739521371766,6.69009,2710.0,2709.6,3.69056]
[1739521372082,6.69009,2710.0,2709.4,3.69085]
[1739521372263,10.38021,2710.0,2709.5,3.69071]
[1739521372465,10.38022,2710.0,2709.5,3.69071]
[1739521372881,6.69009,2710.0,2709.5,3.69071]
[1739521373079,3.6902,2709.9,2709.5,3.69071]
[1739521373711,10.38023,2710.0,2709.5,3.69063]
[1739521373896,6.69009,2710.0,2709.5,3.69063]
[1739521374206,10.38024,2710.0,2709.5,3.69063]
[1739521374405,3.69023,2709.9,2709.4,3.69078]
[1739521374607,6.69009,2710.0,2709.5,3.69065]
[1739521374805,10.38024,2710.0,2709.5,3.69065]
[1739521375104,6.69009,2710.0,2709.5,3.69059]
[1739521375469,3.0,2710.0,2709.4,3.69085]
[1739521375666,3.8188,2710.1,2709.7,3.69038]
[1739521376508,3.8188,2710.1,2709.7,3.69036]
[1739521376708,3.8188,2710.1,2709.7,7.38072]
[1739521376899,3.68964,2710.3,2709.8,3.69021]
[1739521377510,3.68982,2710.2,2709.8,3.69021]
[1739521378171,3.68982,2710.2,2709.6,3.69054]
[1739521378374,3.68982,2710.2,2709.7,3.69044]
[1739521379007,3.68982,2710.2,2709.8,0.72493755]
[1739521379508,6.68992,2710.1,2709.8,0.72493755]
[1739521379887,3.0,2710.1,2709.9,0.09024882]
[1739521380088,0.8261,2710.4,2709.9,0.09024882]
[1739521380274,6.68963,2710.3,2709.9,3.78035882]
[1739521380610,3.6898,2710.2,2709.9,0.09024882]
[1739521380996,7.37969,2710.2,2709.9,0.09024882]
[1739521381195,3.69003,2710.0,2709.9,0.09024882]
[1739521381574,3.6905,2709.7,2709.5,0.73202719]
[1739521381783,3.6905,2709.7,2709.3,3.69098]
[1739521382413,3.69032,2709.8,2709.3,3.69098]
[1739521382584,3.69052,2709.7,2709.2,6.84880531]
[1739521382785,0.7946,2709.9,2709.2,3.15769531]
[1739521383081,3.68937,2710.5,2709.6,0.81]
[1739521383378,0.2765,2711.0,2709.6,0.81]
[1739521383379,3.68962,2710.3,2709.7,3.69044]
[1739521383596,4.23977,2710.2,2709.7,3.69044]
[1739521383930,4.23977,2710.2,2709.7,7.3808]
[1739521384091,4.23977,2710.2,2709.7,3.69036]
[1739521384291,4.23977,2710.2,2709.6,4.50052]
[1739521384521,3.68992,2710.1,2709.6,4.50052]
[1739521384743,4.23977,2710.2,2709.6,4.50052]
[1739521384936,3.6899,2710.1,2709.6,4.50052]
[1739521385093,3.6899,2710.1,2709.6,0.81]
[1739521385432,3.69024,2709.9,2709.6,0.81]
[1739521385609,5.00299,2709.9,2709.4,0.75448972]
[1739521385808,3.69038,2709.8,2709.4,0.75448972]
[1739521386792,3.69051,2709.7,2709.4,0.75448972]
[1739521387224,3.69032,2709.8,2709.4,0.75448972]
[1739521387626,7.38073,2709.8,2709.4,0.75448972]
[1739521387810,1.3128,2709.9,2709.4,0.75448972]
[1739521388010,3.6903,2709.8,2709.4,0.75448972]
[1739521388222,5.00304,2709.9,2709.4,0.75448972]
[1739521388429,3.69032,2709.8,2709.4,0.75448972]
[1739521388836,3.6905,2709.7,2709.4,0.75448972]
[1739521389205,3.69031,2709.8,2709.4,0.75448972]
[1739521389504,3.69065,2709.6,2709.4,0.75448972]
[1739521390447,0.779,2709.4,2707.9,0.8181]
[1739521390645,0.779,2709.4,2707.6,8.93856874]
[1739521390646,3.69229,2708.4,2707.7,3.69307]
[1739521390851,0.55,2708.6,2707.7,3.69307]
[1739521390852,0.55,2708.3,2707.7,3.69307]
[1739521391049,0.55,2708.3,2708.0,0.7368351]
[1739521391246,0.55,2708.4,2707.7,3.69307]
[1739521391449,4.24224,2708.4,2707.7,3.69307]
[1739521391652,3.69262,2708.2,2707.6,0.8181]
[1739521391839,3.69226,2708.4,2707.9,0.7504323]
[1739521392042,3.69244,2708.3,2707.9,0.7504323]
[1739521392353,3.69256,2708.2,2707.9,0.7504323]
[1739521392652,0.55,2708.3,2707.6,0.8181]
[1739521392856,0.55,2708.3,2707.6,4.51132]
[1739521393054,0.55,2708.3,2707.7,0.451132]
[1739521393357,4.24237,2708.3,2707.7,0.451132]
[1739521394153,3.69255,2708.2,2707.7,0.451132]
[1739521394353,3.69255,2708.2,2707.4,3.69349]
[1739521394354,0.8332,2708.0,2707.5,0.75254068]
[1739521394658,3.69291,2707.9,2707.5,0.75254068]
[1739521394956,3.69229,2708.4,2707.7,0.8206]
[1739521395456,3.69229,2708.4,2707.8,0.07623]
[1739521396758,3.69223,2708.4,2707.8,0.07623]
[1739521396916,3.69238,2708.3,2707.8,0.07623]
[1739521397115,0.55,2708.4,2707.8,0.07623]
[1739521397329,3.69256,2708.2,2707.8,0.07623]
[1739521397712,3.69252,2708.2,2707.8,0.07623]
[1739521398053,3.69235,2708.3,2707.8,0.07623]
[1739521398219,3.69253,2708.2,2707.8,0.07623]
[1739521399030,3.69237,2708.3,2707.8,0.07623]
[1739521399433,3.69251,2708.2,2707.8,0.07623]
[1739521399646,3.69263,2708.1,2707.8,0.07623]
[1739521400840,3.69283,2708.0,2707.8,0.07623]
[1739521401051,3.69263,2708.1,2707.8,0.07623]
[1739521401252,3.69289,2707.9,2707.8,0.07623]
[1739521401754,3.6933,2707.6,2707.5,0.75254068]
[1739521401928,3.69323,2707.7,2707.5,0.75254068]
[1739521402346,3.6933,2707.6,2707.5,0.75254068]
[1739521403042,3.6932,2707.7,2707.5,0.75254068]
[1739521403243,3.6932,2707.7,2707.3,0.7818]
[1739521403244,3.69303,2707.8,2707.3,0.7818]
[1739521403423,3.69317,2707.7,2707.3,0.7818]
[1739521403619,3.69333,2707.6,2707.3,0.7818]
[1739521404248,3.69303,2707.8,2707.3,0.7818]
[1739521404453,3.69303,2707.8,2707.3,4.4755]
[1739521404662,4.24291,2707.9,2707.4,0.73526366]
[1739521404832,3.69304,2707.8,2707.4,0.73526366]
[1739521406517,7.38617,2707.8,2707.4,0.73526366]
[1739521406763,3.69325,2707.7,2707.4,0.73526366]
[1739521406961,3.69304,2707.8,2707.4,0.73526366]
[1739521407122,0.55,2707.9,2707.4,0.73526366]
[1739521407560,3.69305,2707.8,2707.4,0.73526366]
[1739521408023,4.2429,2707.9,2707.4,4.42882366]
[1739521408862,0.8085,2707.7,2706.9,8.75]
[1739521409065,0.55,2707.6,2706.9,3.6942]
[1739521409237,3.69364,2707.4,2707.0,0.75440023]
[1739521409442,3.69378,2707.3,2707.0,0.75440023]
[1739521409968,3.69352,2707.5,2707.1,0.07352356]
[1739521410261,3.69364,2707.4,2707.1,0.07352356]
[1739521410665,6.69354,2707.5,2707.1,0.07352356]
[1739521414100,0.7627,2707.6,2707.0,3.69405]
[1739521414269,0.55,2707.5,2707.2,3.69382]
[1739521414669,0.55,2707.5,2707.3,0.07335679]
[1739521414867,3.55,2707.5,2707.3,0.07335679]
[1739521415191,3.55,2707.5,2707.1,3.69398]
[1739521415192,3.55,2707.5,2707.4,0.07344846]
[1739521415698,3.55,2707.5,2707.1,3.69398]
[1739521415879,3.55,2707.5,2707.4,0.07344846]
[1739521416284,3.55,2707.5,2707.1,3.69398]
[1739521416487,3.55,2707.5,2707.4,0.07349104]
[1739521416716,3.55,2707.5,2707.2,3.69384]
[1739521416858,0.55,2707.5,2707.4,0.07349104]
[1739521417059,0.55,2707.5,2707.3,0.07357442]
[1739521417260,0.55,2707.5,2707.4,0.07349104]
[1739521418000,0.55,2707.5,2707.0,4.47863]
[1739521418180,3.6936,2707.4,2707.0,0.7846]
[1739521418389,3.6936,2707.4,2706.9,3.69425]
[1739521419706,3.55,2707.5,2707.1,3.69392]
[1739521419998,0.55,2707.5,2707.2,3.69378]
[1739521420719,0.8326,2708.1,2706.9,0.03693725]
[1739521420875,3.69305,2707.8,2707.3,4.47273]
[1739521421223,3.55,2707.7,2707.3,4.47273]
[1739521423077,3.55,2707.7,2707.3,8.16633]
[1739521423279,3.55,2707.7,2707.4,3.69357]
[1739521423662,3.55,2707.7,2707.2,3.69373]
[1739521423858,3.69305,2707.8,2707.4,3.69352]
[1739521423859,3.55,2707.8,2707.4,3.69352]
[1739521424379,7.24304,2707.8,2707.4,3.69352]
[1739521424581,3.55,2707.8,2707.4,3.69352]
[1739521425106,7.24304,2707.8,2707.5,0.0735969]
[1739521425464,3.55,2707.8,2707.5,0.0735969]
[1739521425660,6.24294,2707.9,2707.5,0.0735969]
[1739521425865,0.8326,2708.1,2707.5,0.0735969]
[1739521426085,0.8326,2708.1,2707.6,3.69319]
[1739521426086,4.52529,2708.1,2707.6,3.69319]
[1739521426473,4.52529,2708.1,2707.7,0.07338286]
[1739521426675,0.8326,2708.1,2707.8,3.69301]
[1739521427065,0.8326,2708.1,2707.9,0.07316412]
[1739521427264,0.8326,2708.1,2707.7,3.69316]
[1739521427465,0.8326,2708.1,2707.7,4.140586]
[1739521427698,3.8326,2708.1,2707.8,0.07324747]
[1739521427900,7.5253,2708.1,2707.8,0.07324747]
[1739521428672,3.69284,2708.0,2707.8,0.07324747]
[1739521428873,0.8326,2708.1,2707.8,0.07324747]
[1739521429073,3.69289,2707.9,2707.8,0.07324747]
[1739521429373,0.8326,2708.1,2707.8,0.07317177]
[1739521429374,3.69285,2708.0,2707.8,0.07317177]
[1739521429581,3.69285,2708.0,2707.6,0.7811]
[1739521429801,3.69285,2708.0,2707.7,0.07325513]
[1739521429968,3.69276,2708.0,2707.7,0.07325513]
[1739521430195,0.8144,2708.3,2707.9,3.69282]
[1739521430572,0.8144,2708.3,2708.0,0.07278747]
[1739521430805,4.50681,2708.3,2708.0,0.07278747]
[1739521430986,4.50677,2708.3,2708.0,0.07278747]
[1739521431914,3.69255,2708.2,2708.0,0.07278747]
[1739521432107,0.8144,2708.3,2708.0,0.07278747]
[1739521432412,4.50676,2708.3,2708.1,0.07270414]
[1739521432616,0.8144,2708.3,2708.1,0.07270414]
[1739521432910,4.50676,2708.3,2707.9,3.69288]
[1739521433092,0.8144,2708.3,2708.2,0.07262081]
[1739521433704,4.50675,2708.3,2707.8,3.69296]
[1739521433908,4.50675,2708.3,2708.2,0.07262081]
[1739521434116,3.69268,2708.1,2707.6,4.47432]
[1739521434311,3.69268,2708.1,2707.6,5.36581178]
[1739521434611,3.69249,2708.2,2707.8,3.69301]
[1739521434817,4.50675,2708.3,2707.9,3.69289]
[1739521435010,4.50675,2708.3,2707.9,3.76576081]
[1739521435379,0.8144,2708.3,2707.9,3.76576081]
[1739521435577,0.8144,2708.3,2707.9,4.51163789]
[1739521435913,4.50676,2708.3,2707.9,4.51163789]
[1739521436120,4.50676,2708.3,2707.9,3.76576081]
[1739521436924,0.8144,2708.3,2707.9,3.76576081]
[1739521437085,4.50676,2708.3,2707.9,3.76576081]
[1739521438526,0.8144,2708.3,2707.9,3.76576081]
[1739521438699,4.50676,2708.3,2707.9,0.07287081]
[1739521439087,4.50676,2708.3,2707.8,3.69303]
[1739521439288,4.50676,2708.3,2708.0,0.07278747]
[1739521439514,4.50676,2708.3,2707.9,3.76571081]
[1739521439716,0.8144,2708.3,2707.9,3.76571081]
[1739521439889,0.8144,2708.3,2708.0,3.69266]
[1739521440294,0.8144,2708.3,2708.1,0.07270414]
[1739521440501,4.50682,2708.3,2708.1,0.07270414]
[1739521440799,0.8144,2708.3,2707.9,3.69288]
[1739521440995,0.8144,2708.3,2708.2,0.07248363]
[1739521441195,0.8144,2708.3,2708.0,3.69273]
[1739521441402,0.8267,2708.6,2708.1,0.07256696]
[1739521441614,0.8267,2708.6,2708.2,3.69236]
[1739521441933,3.8267,2708.6,2708.2,3.69236]
[1739521442111,0.8267,2708.6,2708.3,3.76474031]
[1739521442431,3.0,2708.7,2708.3,3.76474031]
[1739521442596,3.0,2708.7,2708.4,3.69218]